Workbook

Sheet 成绩统计
A1: 观山湖区2020年面向社会招聘中小学、幼儿园“双轨制”面试成绩及总成绩表
A2: 序号 | B2: 姓名 | C2: 身份证号 | D2: 准考证号 | E2: 报名序号 | F2: 报考单位及代码 | G2: 报考岗位及代码 | H2: 笔试成绩 | I2: 折合成百分制笔试成绩 | J2: 面试成绩 | K2: 总成绩（百分制笔试40%面试60%) | L2: 总成绩岗位内排名 | M2: 备注
A3: 1 | B3: 吴名蓉 | C3: 5110**********0665 | D3: 91601052513 | E3: 02740 | F3: 202001-观山湖区第一幼儿园分园 | G3: 01-幼儿园教师 | H3: 112.00 | I3: =H3*100/150 -> 74.67 | J3: 86.50 | K3: =ROUND(H3*100/150*0.4+J3*0.6,2) -> 81.77 | L3: 1
A4: 2 | B4: 王晓红 | C4: 5222**********2823 | D4: 91601111914 | E4: 08637 | F4: 202001-观山湖区第一幼儿园分园 | G4: 01-幼儿园教师 | H4: 112.50 | I4: =H4*100/150 -> 75.00 | J4: 82.50 | K4: =ROUND(H4*100/150*0.4+J4*0.6,2) -> 79.50 | L4: 2
A5: 3 | B5: 封鸿云 | C5: 5202**********9124 | D5: 91601011125 | E5: 04710 | F5: 202001-观山湖区第一幼儿园分园 | G5: 01-幼儿园教师 | H5: 107.50 | I5: 71.67 | J5: 84.50 | K5: 79.37 | L5: 3
A6: 4 | B6: 胡倩 | C6: 5201**********4424 | D6: 91601019828 | E6: 01767 | F6: 202001-观山湖区第一幼儿园分园 | G6: 01-幼儿园教师 | H6: 97.00 | I6: 64.67 | J6: 86.67 | K6: 77.87 | L6: 4
A7: 5 | B7: 杨娅洁 | C7: 5226**********0022 | D7: 91601063420 | E7: 02948 | F7: 202001-观山湖区第一幼儿园分园 | G7: 01-幼儿园教师 | H7: 94.50 | I7: 63.00 | J7: 84.00 | K7: 75.60 | L7: 5
A8: 6 | B8: 余燕 | C8: 5224**********632X | D8: 91601051823 | E8: 07004 | F8: 202001-观山湖区第一幼儿园分园 | G8: 01-幼儿园教师 | H8: 112.50 | I8: 75.00 | J8: 76.00 | K8: 75.60 | L8: 5
A9: 7 | B9: 潘珍 | C9: 5226**********0102 | D9: 91601015603 | E9: 05333 | F9: 202001-观山湖区第一幼儿园分园 | G9: 01-幼儿园教师 | H9: 99.50 | I9: 66.33 | J9: 80.83 | K9: 75.03 | L9: 7
A10: 8 | B10: 陈杨 | C10: 4211**********3766 | D10: 91601121611 | E10: 02694 | F10: 202001-观山湖区第一幼儿园分园 | G10: 01-幼儿园教师 | H10: 91.50 | I10: 61.00 | J10: 83.17 | K10: 74.30 | L10: 8
A11: 9 | B11: 余宝珍 | C11: 5223**********4922 | D11: 91601022305 | E11: 06992 | F11: 202001-观山湖区第一幼儿园分园 | G11: 01-幼儿园教师 | H11: 105.50 | I11: 70.33 | J11: 73.00 | K11: 71.93 | L11: 9
A12: 10 | B12: 陈尧 | C12: 5224**********2028 | D12: 91601031629 | E12: 01188 | F12: 202001-观山湖区第一幼儿园分园 | G12: 01-幼儿园教师 | H12: 104.00 | I12: 69.33 | J12: 73.33 | K12: 71.73 | L12: 10
A13: 11 | B13: 鲁影 | C13: 5225**********412X | D13: 91601024724 | E13: 02087 | F13: 202001-观山湖区第一幼儿园分园 | G13: 01-幼儿园教师 | H13: 103.50 | I13: 69.00 | J13: 73.00 | K13: 71.40 | L13: 11
A14: 12 | B14: 安黔 | C14: 5222**********3388 | D14: 91601030315 | E14: 04198 | F14: 202001-观山湖区第一幼儿园分园 | G14: 01-幼儿园教师 | H14: 99.00 | I14: 66.00 | J14: 74.33 | K14: 71.00 | L14: 12
A15: 13 | B15: 覃燕 | C15: 5221**********402X | D15: 91601025115 | E15: 00294 | F15: 202001-观山湖区第一幼儿园分园 | G15: 01-幼儿园教师 | H15: 95.50 | I15: 63.67 | J15: 75.00 | K15: 70.47 | L15: 13
A16: 14 | B16: 黄文文 | C16: 5201**********3049 | D16: 91601102909 | E16: 12621 | F16: 202001-观山湖区第一幼儿园分园 | G16: 01-幼儿园教师 | H16: 100.50 | I16: 67.00 | J16: 71.50 | K16: 69.70 | L16: 14
A17: 15 | B17: 袁冬精 | C17: 5202**********482X | D17: 91601012702 | E17: 14359 | F17: 202001-观山湖区第一幼儿园分园 | G17: 01-幼儿园教师 | H17: 93.00 | I17: 62.00 | J17: 74.33 | K17: 69.40 | L17: 15
A18: 16 | B18: 李洪丽 | C18: 5224**********7525 | D18: 91601061424 | E18: 02915 | F18: 202001-观山湖区第一幼儿园分园 | G18: 01-幼儿园教师 | H18: 91.50 | I18: 61.00 | J18: 74.33 | K18: 69.00 | L18: 16
A19: 17 | B19: 石玲玲 | C19: 5222**********0109 | D19: 91601052603 | E19: 00384 | F19: 202001-观山湖区第一幼儿园分园 | G19: 01-幼儿园教师 | H19: 94.50 | I19: 63.00 | J19: 72.67 | K19: 68.80 | L19: 17
A20: 18 | B20: 张金霞 | C20: 5221**********7663 | D20: 91601053327 | E20: 17862 | F20: 202001-观山湖区第一幼儿园分园 | G20: 01-幼儿园教师 | H20: 94.50 | I20: 63.00 | J20: 71.83 | K20: 68.30 | L20: 18
A21: 19 | B21: 周美洁 | C21: 5224**********9480 | D21: 91601015509 | E21: 12289 | F21: 202001-观山湖区第一幼儿园分园 | G21: 01-幼儿园教师 | H21: 94.00 | I21: 62.67 | J21: 70.33 | K21: 67.26 | L21: 19
A22: 20 | B22: 罗明红 | C22: 5225**********0029 | D22: 91601013725 | E22: 00109 | F22: 202001-观山湖区第一幼儿园分园 | G22: 01-幼儿园教师 | H22: 98.50 | I22: 65.67 | J22: 67.83 | K22: 66.96 | L22: 20
A23: 21 | B23: 杨朝虹 | C23: 5224**********142X | D23: 91601015225 | E23: 05587 | F23: 202001-观山湖区第一幼儿园分园 | G23: 01-幼儿园教师 | H23: 101.50 | I23: 67.67 | J23: 0.00 | K23: 27.07 | L23: 21
A24: 22 | B24: 刘静 | C24: 5227**********8125 | D24: 91601031503 | E24: 04181 | F24: 202001-观山湖区第一幼儿园分园 | G24: 01-幼儿园教师 | H24: 99.00 | I24: 66.00 | K24: 26.40 | L24: 22 | M24: 缺考
A25: 23 | B25: 杨克珍 | C25: 5202**********7442 | D25: 91601102409 | E25: 08172 | F25: 202001-观山湖区第一幼儿园分园 | G25: 01-幼儿园教师 | H25: 92.50 | I25: 61.67 | K25: 24.67 | L25: 23 | M25: 缺考
A26: 24 | B26: 李晓清 | C26: 5224**********8427 | D26: 91601100309 | E26: 02739 | F26: 202001-观山湖区第一幼儿园分园 | G26: 01-幼儿园教师 | H26: 92.00 | I26: 61.33 | K26: 24.53 | L26: 24 | M26: 缺考
A27: 25 | B27: 刘加义 | C27: 5221**********5245 | D27: 91601018304 | E27: 12198 | F27: 202001-观山湖区第一幼儿园分园 | G27: 01-幼儿园教师 | H27: 91.50 | I27: 61.00 | K27: 24.40 | L27: 25 | M27: 缺考
A28: 26 | B28: 李佩玉 | C28: 5227**********3144 | D28: 91601040729 | E28: 12525 | F28: 202001-观山湖区第一幼儿园分园 | G28: 02-幼儿园教师 | H28: 113.00 | I28: 75.33 | J28: 85.67 | K28: 81.54 | L28: 1
A29: 27 | B29: 马梦悦 | C29: 5201**********4627 | D29: 91601050422 | E29: 14174 | F29: 202001-观山湖区第一幼儿园分园 | G29: 02-幼儿园教师 | H29: 115.00 | I29: 76.67 | J29: 83.33 | K29: 80.66 | L29: 2
A30: 28 | B30: 平诗瑶 | C30: 5227**********0225 | D30: 91601019620 | E30: 08880 | F30: 202001-观山湖区第一幼儿园分园 | G30: 02-幼儿园教师 | H30: 101.00 | I30: 67.33 | J30: 88.00 | K30: 79.73 | L30: 3
A31: 29 | B31: 徐朝霞 | C31: 5222**********3627 | D31: 91601013910 | E31: 11155 | F31: 202001-观山湖区第一幼儿园分园 | G31: 02-幼儿园教师 | H31: 107.00 | I31: 71.33 | J31: 85.33 | K31: 79.73 | L31: 3
A32: 30 | B32: 李竺悯 | C32: 5222**********1649 | D32: 91601018623 | E32: 03973 | F32: 202001-观山湖区第一幼儿园分园 | G32: 02-幼儿园教师 | H32: 116.00 | I32: 77.33 | J32: 81.00 | K32: 79.53 | L32: 5
A33: 31 | B33: 金昌玲 | C33: 5222**********0842 | D33: 91601019812 | E33: 04659 | F33: 202001-观山湖区第一幼儿园分园 | G33: 02-幼儿园教师 | H33: 111.50 | I33: 74.33 | J33: 82.33 | K33: 79.13 | L33: 6
A34: 32 | B34: 邰秋荣 | C34: 5226**********0043 | D34: 91601080402 | E34: 08512 | F34: 202001-观山湖区第一幼儿园分园 | G34: 02-幼儿园教师 | H34: 101.50 | I34: 67.67 | J34: 84.67 | K34: 77.87 | L34: 7
A35: 33 | B35: 王春霞 | C35: 5201**********1226 | D35: 91601062122 | E35: 09983 | F35: 202001-观山湖区第一幼儿园分园 | G35: 02-幼儿园教师 | H35: 108.00 | I35: 72.00 | J35: 81.67 | K35: 77.80 | L35: 8
A36: 34 | B36: 刘晶慧 | C36: 5116**********6162 | D36: 91601042509 | E36: 00523 | F36: 202001-观山湖区第一幼儿园分园 | G36: 02-幼儿园教师 | H36: 106.50 | I36: 71.00 | J36: 81.83 | K36: 77.50 | L36: 9
A37: 35 | B37: 卢虹 | C37: 5116**********4402 | D37: 91601025420 | E37: 18157 | F37: 202001-观山湖区第一幼儿园分园 | G37: 02-幼儿园教师 | H37: 103.50 | I37: 69.00 | J37: 82.33 | K37: 77.00 | L37: 10
A38: 36 | B38: 周涛 | C38: 5221**********2428 | D38: 91601025528 | E38: 11250 | F38: 202001-观山湖区第一幼儿园分园 | G38: 02-幼儿园教师 | H38: 103.50 | I38: 69.00 | J38: 81.33 | K38: 76.40 | L38: 11
A39: 37 | B39: 龙经菁 | C39: 5227**********2545 | D39: 91601019619 | E39: 00801 | F39: 202001-观山湖区第一幼儿园分园 | G39: 02-幼儿园教师 | H39: 101.50 | I39: 67.67 | J39: 81.00 | K39: 75.67 | L39: 12
A40: 38 | B40: 顾和梅 | C40: 5201**********3326 | D40: 91601064410 | E40: 01898 | F40: 202001-观山湖区第一幼儿园分园 | G40: 02-幼儿园教师 | H40: 100.00 | I40: 66.67 | J40: 81.33 | K40: 75.46 | L40: 13
A41: 39 | B41: 松圆 | C41: 5224**********1840 | D41: 91601020407 | E41: 12386 | F41: 202001-观山湖区第一幼儿园分园 | G41: 02-幼儿园教师 | H41: 98.50 | I41: 65.67 | J41: 81.33 | K41: 75.06 | L41: 14
A42: 40 | B42: 陈定香 | C42: 5221**********7527 | D42: 91601023628 | E42: 10034 | F42: 202001-观山湖区第一幼儿园分园 | G42: 02-幼儿园教师 | H42: 102.00 | I42: 68.00 | J42: 79.67 | K42: 75.00 | L42: 15
A43: 41 | B43: 熊敏 | C43: 5111**********2626 | D43: 91601050530 | E43: 13655 | F43: 202001-观山湖区第一幼儿园分园 | G43: 02-幼儿园教师 | H43: 98.50 | I43: 65.67 | J43: 80.67 | K43: 74.67 | L43: 16
A44: 42 | B44: 杨婷 | C44: 5202**********2365 | D44: 91601023407 | E44: 07710 | F44: 202001-观山湖区第一幼儿园分园 | G44: 02-幼儿园教师 | H44: 101.00 | I44: 67.33 | J44: 79.33 | K44: 74.53 | L44: 17
A45: 43 | B45: 邓星 | C45: 5321**********1723 | D45: 91601093220 | E45: 13388 | F45: 202001-观山湖区第一幼儿园分园 | G45: 02-幼儿园教师 | H45: 104.50 | I45: 69.67 | J45: 77.00 | K45: 74.07 | L45: 18
A46: 44 | B46: 叶运琴 | C46: 5226**********1041 | D46: 91601012314 | E46: 15860 | F46: 202001-观山湖区第一幼儿园分园 | G46: 02-幼儿园教师 | H46: 101.50 | I46: 67.67 | J46: 78.33 | K46: 74.06 | L46: 19
A47: 45 | B47: 方草 | C47: 5221**********6421 | D47: 91601050722 | E47: 09773 | F47: 202001-观山湖区第一幼儿园分园 | G47: 02-幼儿园教师 | H47: 102.00 | I47: 68.00 | J47: 77.33 | K47: 73.60 | L47: 20
A48: 46 | B48: 尹会会 | C48: 5202**********4022 | D48: 91601012014 | E48: 06542 | F48: 202001-观山湖区第一幼儿园分园 | G48: 02-幼儿园教师 | H48: 98.50 | I48: 65.67 | J48: 75.33 | K48: 71.46 | L48: 21
A49: 47 | B49: 尹相棋 | C49: 5003**********7866 | D49: 91601083304 | E49: 03385 | F49: 202001-观山湖区第一幼儿园分园 | G49: 02-幼儿园教师 | H49: 108.00 | I49: 72.00 | K49: 28.80 | L49: 22 | M49: 缺考
A50: 48 | B50: 罗凤云 | C50: 5201**********3026 | D50: 91601072329 | E50: 13847 | F50: 202001-观山湖区第一幼儿园分园 | G50: 02-幼儿园教师 | H50: 106.50 | I50: 71.00 | K50: 28.40 | L50: 23 | M50: 缺考
A51: 49 | B51: 黄妮妮 | C51: 5224**********0444 | D51: 91601062407 | E51: 13297 | F51: 202001-观山湖区第一幼儿园分园 | G51: 02-幼儿园教师 | H51: 104.50 | I51: 69.67 | K51: 27.87 | L51: 24 | M51: 缺考
A52: 50 | B52: 王加双 | C52: 5221**********5627 | D52: 91601042204 | E52: 15966 | F52: 202001-观山湖区第一幼儿园分园 | G52: 02-幼儿园教师 | H52: 103.50 | I52: 69.00 | K52: 27.60 | L52: 25 | M52: 缺考
A53: 51 | B53: 杨德英 | C53: 5225**********4020 | D53: 91601051728 | E53: 16572 | F53: 202001-观山湖区第一幼儿园分园 | G53: 02-幼儿园教师 | H53: 99.00 | I53: 66.00 | K53: 26.40 | L53: 26 | M53: 缺考
A54: 52 | B54: 宋玲玉 | C54: 5201**********0820 | D54: 91601022110 | E54: 12137 | F54: 202002-观山湖区第二幼儿园 | G54: 01-幼儿园教师 | H54: 119.50 | I54: 79.67 | J54: 82.50 | K54: 81.37 | L54: 1
A55: 53 | B55: 刘丽文 | C55: 5222**********5827 | D55: 91601026306 | E55: 04725 | F55: 202002-观山湖区第二幼儿园 | G55: 01-幼儿园教师 | H55: 105.00 | I55: 70.00 | J55: 87.66 | K55: 80.60 | L55: 2
A56: 54 | B56: 郭舒星 | C56: 5224**********9683 | D56: 91601023526 | E56: 13437 | F56: 202002-观山湖区第二幼儿园 | G56: 01-幼儿园教师 | H56: 114.00 | I56: 76.00 | J56: 82.83 | K56: 80.10 | L56: 3
A57: 55 | B57: 付湄 | C57: 5201**********0622 | D57: 91601060117 | E57: 12010 | F57: 202002-观山湖区第二幼儿园 | G57: 01-幼儿园教师 | H57: 113.50 | I57: 75.67 | J57: 83.00 | K57: 80.07 | L57: 4
A58: 56 | B58: 熊心洁 | C58: 5224**********1626 | D58: 91601122217 | E58: 00201 | F58: 202002-观山湖区第二幼儿园 | G58: 01-幼儿园教师 | H58: 98.50 | I58: 65.67 | J58: 88.83 | K58: 79.56 | L58: 5
A59: 57 | B59: 刘家丽 | C59: 5224**********9026 | D59: 91601063520 | E59: 11773 | F59: 202002-观山湖区第二幼儿园 | G59: 01-幼儿园教师 | H59: 103.00 | I59: 68.67 | J59: 86.83 | K59: 79.56 | L59: 5
A60: 58 | B60: 叶文函 | C60: 5225**********1049 | D60: 91601081218 | E60: 00982 | F60: 202002-观山湖区第二幼儿园 | G60: 01-幼儿园教师 | H60: 99.50 | I60: 66.33 | J60: 86.26 | K60: 78.29 | L60: 7
A61: 59 | B61: 唐小艳 | C61: 5221**********3024 | D61: 91601021315 | E61: 00172 | F61: 202002-观山湖区第二幼儿园 | G61: 01-幼儿园教师 | H61: 102.00 | I61: 68.00 | J61: 84.00 | K61: 77.60 | L61: 8
A62: 60 | B62: 龚极 | C62: 5224**********0822 | D62: 91601042615 | E62: 01012 | F62: 202002-观山湖区第二幼儿园 | G62: 01-幼儿园教师 | H62: 103.00 | I62: 68.67 | J62: 82.66 | K62: 77.06 | L62: 9
A63: 61 | B63: 郑永丹 | C63: 5201**********1782 | D63: 91601111117 | E63: 03578 | F63: 202002-观山湖区第二幼儿园 | G63: 01-幼儿园教师 | H63: 101.00 | I63: 67.33 | J63: 83.50 | K63: 77.03 | L63: 10
A64: 62 | B64: 赵润 | C64: 5137**********0148 | D64: 91601010920 | E64: 13746 | F64: 202002-观山湖区第二幼儿园 | G64: 01-幼儿园教师 | H64: 97.50 | I64: 65.00 | J64: 84.33 | K64: 76.60 | L64: 11
A65: 63 | B65: 江颖琳 | C65: 5224**********0446 | D65: 91601101325 | E65: 01022 | F65: 202002-观山湖区第二幼儿园 | G65: 01-幼儿园教师 | H65: 105.50 | I65: 70.33 | J65: 80.73 | K65: 76.57 | L65: 12
A66: 64 | B66: 王娟 | C66: 5224**********1225 | D66: 91601101908 | E66: 05298 | F66: 202002-观山湖区第二幼儿园 | G66: 01-幼儿园教师 | H66: 104.50 | I66: 69.67 | J66: 81.16 | K66: 76.56 | L66: 13
A67: 65 | B67: 苏小山 | C67: 5222**********574X | D67: 91601100710 | E67: 12960 | F67: 202002-观山湖区第二幼儿园 | G67: 01-幼儿园教师 | H67: 109.00 | I67: 72.67 | J67: 78.66 | K67: =ROUND(H67*100/150*0.4+J67*0.6,2) -> 76.26 | L67: 14
A68: 66 | B68: 朱洪倩 | C68: 5224**********0027 | D68: 91601017123 | E68: 00691 | F68: 202002-观山湖区第二幼儿园 | G68: 01-幼儿园教师 | H68: 112.00 | I68: =H68*100/150 -> 74.67 | J68: 77.33 | K68: 76.26 | L68: 14
A69: 67 | B69: 杨梅 | C69: 5224**********5821 | D69: 91601061220 | E69: 14526 | F69: 202002-观山湖区第二幼儿园 | G69: 01-幼儿园教师 | H69: 101.50 | I69: 67.67 | J69: 81.93 | K69: 76.22 | L69: 16
A70: 68 | B70: 邓青 | C70: 5201**********1725 | D70: 91601020219 | E70: 03223 | F70: 202002-观山湖区第二幼儿园 | G70: 01-幼儿园教师 | H70: 107.50 | I70: 71.67 | J70: 78.73 | K70: 75.90 | L70: 17
A71: 69 | B71: 田莉 | C71: 5222**********4227 | D71: 91601026319 | E71: 04279 | F71: 202002-观山湖区第二幼儿园 | G71: 01-幼儿园教师 | H71: 106.00 | I71: 70.67 | J71: 77.50 | K71: 74.77 | L71: 18
A72: 70 | B72: 邹寒雪 | C72: 5221**********1026 | D72: 91601010818 | E72: 01192 | F72: 202002-观山湖区第二幼儿园 | G72: 01-幼儿园教师 | H72: 107.00 | I72: 71.33 | J72: 77.06 | K72: 74.77 | L72: 18
A73: 71 | B73: 李君蔓 | C73: 5201**********1822 | D73: 91601026102 | E73: 13313 | F73: 202002-观山湖区第二幼儿园 | G73: 01-幼儿园教师 | H73: 104.00 | I73: 69.33 | J73: 77.16 | K73: 74.03 | L73: 20
A74: 72 | B74: 吴环凡 | C74: 5226**********322X | D74: 91601111218 | E74: 03178 | F74: 202002-观山湖区第二幼儿园 | G74: 01-幼儿园教师 | H74: 98.50 | I74: 65.67 | J74: 78.33 | K74: 73.26 | L74: 21
A75: 73 | B75: 张小雪 | C75: 5303**********0384 | D75: 91601060505 | E75: 01009 | F75: 202002-观山湖区第二幼儿园 | G75: 01-幼儿园教师 | H75: 97.00 | I75: 64.67 | J75: 78.83 | K75: 73.16 | L75: 22
A76: 74 | B76: 代群 | C76: 5202**********0785 | D76: 91601092017 | E76: 14198 | F76: 202002-观山湖区第二幼儿园 | G76: 01-幼儿园教师 | H76: 106.50 | I76: 71.00 | J76: 74.43 | K76: 73.06 | L76: 23
A77: 75 | B77: 桑婷 | C77: 5227**********2927 | D77: 91601024422 | E77: 03408 | F77: 202002-观山湖区第二幼儿园 | G77: 01-幼儿园教师 | H77: 103.00 | I77: 68.67 | J77: 75.40 | K77: 72.71 | L77: 24
A78: 76 | B78: 李天瑛 | C78: 5224**********2585 | D78: 91601012626 | E78: 09347 | F78: 202002-观山湖区第二幼儿园 | G78: 01-幼儿园教师 | H78: 99.50 | I78: 66.33 | J78: 76.83 | K78: 72.63 | L78: 25
A79: 77 | B79: 方思飞 | C79: 5223**********3020 | D79: 91601040428 | E79: 16357 | F79: 202002-观山湖区第二幼儿园 | G79: 01-幼儿园教师 | H79: 102.00 | I79: 68.00 | J79: 75.60 | K79: 72.56 | L79: 26
A80: 78 | B80: 彭孟媛 | C80: 5224**********5041 | D80: 91601062528 | E80: 17958 | F80: 202002-观山湖区第二幼儿园 | G80: 01-幼儿园教师 | H80: 98.50 | I80: 65.67 | J80: 77.06 | K80: 72.50 | L80: 27
A81: 79 | B81: 金秀敏 | C81: 5221**********7024 | D81: 91601101803 | E81: 07297 | F81: 202002-观山湖区第二幼儿园 | G81: 01-幼儿园教师 | H81: 98.50 | I81: 65.67 | J81: 74.33 | K81: 70.86 | L81: 28
A82: 80 | B82: 叶婷 | C82: 5221**********4027 | D82: 91601030227 | E82: 00216 | F82: 202002-观山湖区第二幼儿园 | G82: 01-幼儿园教师 | H82: 96.50 | I82: 64.33 | J82: 75.00 | K82: 70.73 | L82: 29
A83: 81 | B83: 彭艳红 | C83: 5221**********1043 | D83: 91601070110 | E83: 11675 | F83: 202002-观山湖区第二幼儿园 | G83: 01-幼儿园教师 | H83: 96.00 | I83: 64.00 | J83: 74.83 | K83: 70.50 | L83: 30
A84: 82 | B84: 汪家琴 | C84: 5201**********2827 | D84: 91601011705 | E84: 03745 | F84: 202003-观山湖区第三幼儿园 | G84: 01-幼儿园教师 | H84: 112.00 | I84: 74.67 | J84: 78.67 | K84: 77.07 | L84: 1
A85: 83 | B85: 夏姗 | C85: 5224**********0024 | D85: 91601122201 | E85: 00134 | F85: 202003-观山湖区第三幼儿园 | G85: 01-幼儿园教师 | H85: 105.00 | I85: 70.00 | J85: 80.67 | K85: 76.40 | L85: 2
A86: 84 | B86: 罗飞 | C86: 5222**********1226 | D86: 91601102830 | E86: 13141 | F86: 202003-观山湖区第三幼儿园 | G86: 01-幼儿园教师 | H86: 94.50 | I86: 63.00 | J86: 84.00 | K86: 75.60 | L86: 3
A87: 85 | B87: 邵爽 | C87: 5221**********0826 | D87: 91601028516 | E87: 03098 | F87: 202003-观山湖区第三幼儿园 | G87: 01-幼儿园教师 | H87: 103.00 | I87: 68.67 | J87: 80.00 | K87: 75.47 | L87: 4
A88: 87 | B88: 罗芳 | C88: 5221**********3022 | D88: 91601024614 | E88: 11114 | F88: 202003-观山湖区第三幼儿园 | G88: 01-幼儿园教师 | H88: 104.50 | I88: 69.67 | J88: 76.67 | K88: 73.87 | L88: 5
A89: 88 | B89: 杨光会 | C89: 5221**********2543 | D89: 91601030723 | E89: 06219 | F89: 202003-观山湖区第三幼儿园 | G89: 01-幼儿园教师 | H89: 96.00 | I89: 64.00 | J89: 79.67 | K89: 73.40 | L89: 6
A90: 89 | B90: 汪泽兰 | C90: 5201**********2123 | D90: 91601041811 | E90: 04834 | F90: 202003-观山湖区第三幼儿园 | G90: 01-幼儿园教师 | H90: 99.00 | I90: 66.00 | J90: 77.67 | K90: 73.00 | L90: 7
A91: 90 | B91: 谭敏 | C91: 5202**********0160 | D91: 91601052313 | E91: 04920 | F91: 202003-观山湖区第三幼儿园 | G91: 01-幼儿园教师 | H91: 100.50 | I91: 67.00 | J91: 76.00 | K91: 72.40 | L91: 8
A92: 91 | B92: 龚大雪 | C92: 5221**********3541 | D92: 91601021702 | E92: 16043 | F92: 202003-观山湖区第三幼儿园 | G92: 01-幼儿园教师 | H92: 94.50 | I92: 63.00 | J92: 76.33 | K92: 71.00 | L92: 9
A93: 92 | B93: 梅永琴 | C93: 5221**********4420 | D93: 91601040221 | E93: 02024 | F93: 202003-观山湖区第三幼儿园 | G93: 01-幼儿园教师 | H93: 96.00 | I93: 64.00 | J93: 67.00 | K93: 65.80 | L93: 10
A94: 86 | B94: 王雨晴 | C94: 5201**********7029 | D94: 91601080313 | E94: 00379 | F94: 202003-观山湖区第三幼儿园 | G94: 01-幼儿园教师 | H94: 96.50 | I94: 64.33 | J94: 0.00 | K94: 25.73 | L94: 11
A95: 93 | B95: 赵思义 | C95: 5224**********6021 | D95: 91601026628 | E95: 01195 | F95: 202004-观山湖区第四幼儿园 | G95: 01-幼儿园教师 | H95: 106.50 | I95: 71.00 | J95: 82.00 | K95: 77.60 | L95: 1
A96: 94 | B96: 邹金兰 | C96: 5224**********0047 | D96: 91601014819 | E96: 04875 | F96: 202004-观山湖区第四幼儿园 | G96: 01-幼儿园教师 | H96: 105.50 | I96: 70.33 | J96: 79.67 | K96: 75.94 | L96: 2
A97: 95 | B97: 杨惠茗 | C97: 5226**********3640 | D97: 91601062106 | E97: 06806 | F97: 202004-观山湖区第四幼儿园 | G97: 01-幼儿园教师 | H97: 103.50 | I97: 69.00 | J97: 79.00 | K97: 75.00 | L97: 3
A98: 96 | B98: 赵丽 | C98: 5201**********3020 | D98: 91601015104 | E98: 00246 | F98: 202004-观山湖区第四幼儿园 | G98: 01-幼儿园教师 | H98: 99.00 | I98: 66.00 | J98: 80.33 | K98: 74.60 | L98: 4
A99: 97 | B99: 杨楠 | C99: 5002**********3944 | D99: 91601018222 | E99: 00454 | F99: 202004-观山湖区第四幼儿园 | G99: 01-幼儿园教师 | H99: 106.00 | I99: 70.67 | J99: 76.67 | K99: 74.27 | L99: 5
A100: 98 | B100: 陈凤娥 | C100: 5227**********7563 | D100: 91601042024 | E100: 00079 | F100: 202004-观山湖区第四幼儿园 | G100: 01-幼儿园教师 | H100: 109.50 | I100: 73.00 | J100: 74.00 | K100: 73.60 | L100: 6
A101: 99 | B101: 徐念念 | C101: 5202**********0047 | D101: 91601021130 | E101: 01220 | F101: 202004-观山湖区第四幼儿园 | G101: 01-幼儿园教师 | H101: 97.50 | I101: 65.00 | J101: 78.33 | K101: 73.00 | L101: 7
A102: 100 | B102: 吴运曼 | C102: 5224**********2644 | D102: 91601025925 | E102: 01859 | F102: 202004-观山湖区第四幼儿园 | G102: 01-幼儿园教师 | H102: 104.50 | I102: 69.67 | J102: 72.67 | K102: 71.47 | L102: 8
A103: 101 | B103: 高希 | C103: 5201**********2226 | D103: 91601060827 | E103: 06241 | F103: 202004-观山湖区第四幼儿园 | G103: 01-幼儿园教师 | H103: 97.00 | I103: 64.67 | J103: 75.00 | K103: 70.87 | L103: 9
A104: 102 | B104: 陈秋雨 | C104: 5224**********0028 | D104: 91601027312 | E104: 01596 | F104: 202004-观山湖区第四幼儿园 | G104: 01-幼儿园教师 | H104: 92.00 | I104: 61.33 | J104: 75.33 | K104: 69.73 | L104: 10
A105: 103 | B105: 丁巧巧 | C105: 5226**********3426 | D105: 91601102114 | E105: 00193 | F105: 202004-观山湖区第四幼儿园 | G105: 01-幼儿园教师 | H105: 102.00 | I105: 68.00 | J105: 70.67 | K105: 69.60 | L105: 11
A106: 104 | B106: 温丽容 | C106: 5201**********182X | D106: 91601013722 | E106: 03145 | F106: 202004-观山湖区第四幼儿园 | G106: 01-幼儿园教师 | H106: 93.50 | I106: 62.33 | J106: 74.33 | K106: 69.53 | L106: 12
A107: 105 | B107: 吴青青 | C107: 5227**********3182 | D107: 91601028612 | E107: 05064 | F107: 202004-观山湖区第四幼儿园 | G107: 01-幼儿园教师 | H107: 97.50 | I107: 65.00 | J107: 70.67 | K107: 68.40 | L107: 13
A108: 106 | B108: 郑晨瑶 | C108: 5224**********2422 | D108: 91601016325 | E108: 02751 | F108: 202004-观山湖区第四幼儿园 | G108: 01-幼儿园教师 | H108: 97.00 | I108: 64.67 | J108: 70.67 | K108: 68.27 | L108: 14
A109: 107 | B109: 吴娇燕 | C109: 5222**********3627 | D109: 91601093406 | E109: 11970 | F109: 202004-观山湖区第四幼儿园 | G109: 01-幼儿园教师 | H109: 108.00 | I109: 72.00 | J109: 65.67 | K109: 68.20 | L109: 15
A110: 108 | B110: 李康俊 | C110: 5221**********1228 | D110: 91601031515 | E110: 18343 | F110: 202004-观山湖区第四幼儿园 | G110: 01-幼儿园教师 | H110: 91.50 | I110: 61.00 | J110: 71.00 | K110: 67.00 | L110: 16
A111: 109 | B111: 叶睦华 | C111: 5202**********0829 | D111: 91601063817 | E111: 04017 | F111: 202004-观山湖区第四幼儿园 | G111: 01-幼儿园教师 | H111: 93.00 | I111: 62.00 | J111: 68.33 | K111: 65.80 | L111: 17
A112: 110 | B112: 陈慧 | C112: 5222**********8423 | D112: 91601017223 | E112: 05651 | F112: 202004-观山湖区第四幼儿园 | G112: 01-幼儿园教师 | H112: 94.50 | I112: 63.00 | J112: 67.67 | K112: 65.80 | L112: 17
A113: 111 | B113: 文莉 | C113: 5224**********2429 | D113: 91601093022 | E113: 01286 | F113: 202004-观山湖区第四幼儿园 | G113: 01-幼儿园教师 | H113: 96.00 | I113: 64.00 | J113: 66.00 | K113: 65.20 | L113: 19
A114: 112 | B114: 邓昂余 | C114: 5322**********1549 | D114: 91601063614 | E114: 01856 | F114: 202004-观山湖区第四幼儿园 | G114: 01-幼儿园教师 | H114: 93.00 | I114: 62.00 | J114: 66.33 | K114: 64.60 | L114: 20
A115: 113 | B115: 陈兴群 | C115: 5224**********4228 | D115: 91601041502 | E115: 03086 | F115: 202004-观山湖区第四幼儿园 | G115: 01-幼儿园教师 | H115: 90.50 | I115: 60.33 | J115: 67.33 | K115: 64.53 | L115: 21
A116: 114 | B116: 刘安丽 | C116: 5223**********5620 | D116: 91601102902 | E116: 03883 | F116: 202004-观山湖区第四幼儿园 | G116: 01-幼儿园教师 | H116: 94.50 | I116: 63.00 | J116: 65.00 | K116: 64.20 | L116: 22
A117: 115 | B117: 张玉飞 | C117: 5224**********6840 | D117: 91601081001 | E117: 14951 | F117: 202004-观山湖区第四幼儿园 | G117: 01-幼儿园教师 | H117: 93.00 | I117: 62.00 | J117: 65.00 | K117: 63.80 | L117: 23
A118: 116 | B118: 邓天霞 | C118: 5222**********5223 | D118: 91601111605 | E118: 05046 | F118: 202004-观山湖区第四幼儿园 | G118: 01-幼儿园教师 | H118: 99.00 | I118: 66.00 | K118: 26.40 | L118: 24 | M118: 弃考
A119: 117 | B119: 骆鑫宇 | C119: 5221**********3661 | D119: 91601030230 | E119: 17988 | F119: 202004-观山湖区第四幼儿园 | G119: 01-幼儿园教师 | H119: 92.00 | I119: 61.33 | K119: 24.53 | L119: 25 | M119: 缺考
A120: 118 | B120: 孟锦 | C120: 5201**********1223 | D120: 91601080103 | E120: 00953 | F120: 202004-观山湖区第四幼儿园 | G120: 01-幼儿园教师 | H120: 90.50 | I120: 60.33 | K120: 24.13 | L120: 26 | M120: 缺考
A121: 119 | B121: 段艳 | C121: 5224**********0429 | D121: 91601121517 | E121: 06725 | F121: 202004-观山湖区第四幼儿园 | G121: 02-幼儿园教师 | H121: 105.50 | I121: 70.33 | J121: 85.33 | K121: 79.33 | L121: 1
A122: 120 | B122: 周容 | C122: 5224**********3629 | D122: 91601050803 | E122: 11705 | F122: 202004-观山湖区第四幼儿园 | G122: 02-幼儿园教师 | H122: 104.50 | I122: 69.67 | J122: 85.00 | K122: 78.87 | L122: 2
A123: 121 | B123: 陈刘洪 | C123: 5201**********4222 | D123: 91601070514 | E123: 10360 | F123: 202004-观山湖区第四幼儿园 | G123: 02-幼儿园教师 | H123: 106.00 | I123: 70.67 | J123: 83.33 | K123: 78.26 | L123: 3
A124: 122 | B124: 刘容伶 | C124: 5101**********0026 | D124: 91601028205 | E124: 14433 | F124: 202004-观山湖区第四幼儿园 | G124: 02-幼儿园教师 | H124: 113.00 | I124: 75.33 | J124: 80.00 | K124: 78.13 | L124: 4
A125: 123 | B125: 杨荣珊 | C125: 5201**********0065 | D125: 91601064321 | E125: 14083 | F125: 202004-观山湖区第四幼儿园 | G125: 02-幼儿园教师 | H125: 98.50 | I125: 65.67 | J125: 84.67 | K125: 77.07 | L125: 5
A126: 124 | B126: 杨锐 | C126: 5201**********1823 | D126: 91601019502 | E126: 02280 | F126: 202004-观山湖区第四幼儿园 | G126: 02-幼儿园教师 | H126: 104.00 | I126: 69.33 | J126: 81.33 | K126: 76.53 | L126: 6
A127: 125 | B127: 周雪 | C127: 5201**********0624 | D127: 91601020205 | E127: 11162 | F127: 202004-观山湖区第四幼儿园 | G127: 02-幼儿园教师 | H127: 108.50 | I127: 72.33 | J127: 77.33 | K127: 75.33 | L127: 7
A128: 126 | B128: 赵倩芸 | C128: 5201**********5845 | D128: 91601019821 | E128: 06362 | F128: 202004-观山湖区第四幼儿园 | G128: 02-幼儿园教师 | H128: 95.50 | I128: 63.67 | J128: 80.00 | K128: 73.47 | L128: 8
A129: 127 | B129: 张吉美 | C129: 5202**********8727 | D129: 91601042424 | E129: 04565 | F129: 202004-观山湖区第四幼儿园 | G129: 02-幼儿园教师 | H129: 100.50 | I129: 67.00 | J129: 76.33 | K129: 72.60 | L129: 9
A130: 128 | B130: 潘鑫 | C130: 5201**********6625 | D130: 91601027410 | E130: 15681 | F130: 202004-观山湖区第四幼儿园 | G130: 02-幼儿园教师 | H130: 102.00 | I130: 68.00 | J130: 74.50 | K130: 71.90 | L130: 10
A131: 129 | B131: 薛洪梅 | C131: 5221**********2024 | D131: 91601112010 | E131: 10880 | F131: 202004-观山湖区第四幼儿园 | G131: 02-幼儿园教师 | H131: 112.00 | I131: 74.67 | J131: 69.00 | K131: =ROUND(H131*100/150*0.4+J131*0.6,2) -> 71.27 | L131: 11
A132: 130 | B132: 王敏 | C132: 5221**********5229 | D132: 91601081806 | E132: 15818 | F132: 202004-观山湖区第四幼儿园 | G132: 02-幼儿园教师 | H132: 107.50 | I132: =H132*100/150 -> 71.67 | J132: 70.00 | K132: 70.67 | L132: 12
A133: 131 | B133: 班晓换 | C133: 5227**********602X | D133: 91601060410 | E133: 04351 | F133: 202004-观山湖区第四幼儿园 | G133: 02-幼儿园教师 | H133: 94.50 | I133: 63.00 | J133: 73.33 | K133: 69.20 | L133: 13
A134: 132 | B134: 李显丽 | C134: 5221**********4026 | D134: 91601121423 | E134: 10197 | F134: 202004-观山湖区第四幼儿园 | G134: 02-幼儿园教师 | H134: 97.50 | I134: 65.00 | J134: 71.00 | K134: 68.60 | L134: 14
A135: 133 | B135: 李龙琴 | C135: 5224**********6920 | D135: 91601063501 | E135: 00965 | F135: 202004-观山湖区第四幼儿园 | G135: 02-幼儿园教师 | H135: 95.00 | I135: 63.33 | J135: 70.67 | K135: 67.74 | L135: 15
A136: 134 | B136: 王娥 | C136: 5224**********7047 | D136: 91601121821 | E136: 09842 | F136: 202004-观山湖区第四幼儿园 | G136: 02-幼儿园教师 | H136: 96.00 | I136: 64.00 | J136: 69.33 | K136: 67.20 | L136: 16
A137: 135 | B137: 肖进琴 | C137: 5222**********1746 | D137: 91601021714 | E137: 16931 | F137: 202004-观山湖区第四幼儿园 | G137: 02-幼儿园教师 | H137: 98.00 | I137: 65.33 | J137: 66.33 | K137: 65.93 | L137: 17
A138: 136 | B138: 罗丽 | C138: 5222**********1626 | D138: 91601025107 | E138: 00269 | F138: 202004-观山湖区第四幼儿园 | G138: 02-幼儿园教师 | H138: 98.50 | I138: 65.67 | J138: 65.67 | K138: 65.67 | L138: 18
A139: 137 | B139: 黄娟娟 | C139: 5224**********5246 | D139: 91601062117 | E139: 16387 | F139: 202004-观山湖区第四幼儿园 | G139: 02-幼儿园教师 | H139: 117.50 | I139: 78.33 | K139: 31.33 | L139: 19 | M139: 缺考
A140: 138 | B140: 艾听 | C140: 5224**********1821 | D140: 91601082410 | E140: 13767 | F140: 202004-观山湖区第四幼儿园 | G140: 02-幼儿园教师 | H140: 96.00 | I140: 64.00 | K140: 25.60 | L140: 20 | M140: 缺考
A141: 139 | B141: 赵娟 | C141: 5201**********0025 | D141: 91601050613 | E141: 16431 | F141: 202005-观山湖区第六幼儿园 | G141: 01-幼儿园教师 | H141: 101.00 | I141: 67.33 | J141: 81.33 | K141: 75.73 | L141: 1
A142: 140 | B142: 肖超 | C142: 5224**********9646 | D142: 91601122112 | E142: 17965 | F142: 202005-观山湖区第六幼儿园 | G142: 01-幼儿园教师 | H142: 95.00 | I142: 63.33 | J142: 80.33 | K142: 73.53 | L142: 2
A143: 141 | B143: 郑春梅 | C143: 5224**********3529 | D143: 91601121329 | E143: 03341 | F143: 202005-观山湖区第六幼儿园 | G143: 01-幼儿园教师 | H143: 108.50 | I143: 72.33 | J143: 71.73 | K143: 71.97 | L143: 3
A144: 142 | B144: 彭茂 | C144: 5202**********2128 | D144: 91601024202 | E144: 04380 | F144: 202005-观山湖区第六幼儿园 | G144: 01-幼儿园教师 | H144: 92.50 | I144: 61.67 | J144: 77.10 | K144: 70.93 | L144: 4
A145: 143 | B145: 王龙梅 | C145: 5201**********6049 | D145: 91601014321 | E145: 12311 | F145: 202005-观山湖区第六幼儿园 | G145: 01-幼儿园教师 | H145: 96.00 | I145: 64.00 | J145: 73.36 | K145: 69.62 | L145: 5
A146: 144 | B146: 王佳娴 | C146: 5225**********5244 | D146: 91601061819 | E146: 11325 | F146: 202005-观山湖区第六幼儿园 | G146: 01-幼儿园教师 | H146: 91.50 | I146: 61.00 | J146: 73.13 | K146: 68.28 | L146: 6
A147: 145 | B147: 罗娟 | C147: 5221**********2248 | D147: 91601013615 | E147: 16021 | F147: 202005-观山湖区第六幼儿园 | G147: 01-幼儿园教师 | H147: 92.00 | I147: 61.33 | J147: 70.53 | K147: 66.85 | L147: 7
A148: 146 | B148: 田杰 | C148: 5224**********9081 | D148: 91601070804 | E148: 10534 | F148: 202005-观山湖区第六幼儿园 | G148: 01-幼儿园教师 | H148: 91.50 | I148: 61.00 | J148: 68.33 | K148: 65.40 | L148: 8
A149: 147 | B149: 余凤 | C149: 5224**********0840 | D149: 91601012315 | E149: 06710 | F149: 202005-观山湖区第六幼儿园 | G149: 01-幼儿园教师 | H149: 90.00 | I149: 60.00 | J149: 63.00 | K149: 61.80 | L149: 9
A150: 148 | B150: 朱佳丽 | C150: 5223**********0423 | D150: 91601090912 | E150: 01250 | F150: 202005-观山湖区第六幼儿园 | G150: 01-幼儿园教师 | H150: 90.50 | I150: 60.33 | K150: 24.13 | L150: 10 | M150: 缺考
A151: 149 | B151: 张芳 | C151: 5202**********4462 | D151: 91601090105 | E151: 04691 | F151: 202005-观山湖区第六幼儿园 | G151: 02-幼儿园教师 | H151: 98.50 | I151: 65.67 | J151: 85.33 | K151: 77.46 | L151: 1
A152: 150 | B152: 陈腊燕 | C152: 5227**********4524 | D152: 91601070429 | E152: 00181 | F152: 202005-观山湖区第六幼儿园 | G152: 02-幼儿园教师 | H152: 110.00 | I152: 73.33 | J152: 79.67 | K152: 77.14 | L152: 2
A153: 151 | B153: 罗杉 | C153: 5201**********6020 | D153: 91601070623 | E153: 11332 | F153: 202005-观山湖区第六幼儿园 | G153: 02-幼儿园教师 | H153: 102.50 | I153: 68.33 | J153: 80.67 | K153: 75.74 | L153: 3
A154: 152 | B154: 付垭丽 | C154: 5201**********3642 | D154: 91601121506 | E154: 08034 | F154: 202005-观山湖区第六幼儿园 | G154: 02-幼儿园教师 | H154: 94.50 | I154: 63.00 | J154: 81.00 | K154: 73.80 | L154: 4
A155: 153 | B155: 钟梅 | C155: 5224**********1662 | D155: 91601014411 | E155: 15467 | F155: 202005-观山湖区第六幼儿园 | G155: 02-幼儿园教师 | H155: 101.00 | I155: 67.33 | J155: 77.00 | K155: 73.13 | L155: 5
A156: 154 | B156: 严兴英 | C156: 5201**********4827 | D156: 91601022826 | E156: 01302 | F156: 202005-观山湖区第六幼儿园 | G156: 02-幼儿园教师 | H156: 99.00 | I156: 66.00 | J156: 77.00 | K156: 72.60 | L156: 6
A157: 155 | B157: 杨丹迪 | C157: 5201**********0026 | D157: 91601100527 | E157: 14318 | F157: 202005-观山湖区第六幼儿园 | G157: 02-幼儿园教师 | H157: 96.00 | I157: 64.00 | J157: 76.33 | K157: 71.40 | L157: 7
A158: 156 | B158: 洪婧雯 | C158: 5201**********0027 | D158: 91601019319 | E158: 14080 | F158: 202005-观山湖区第六幼儿园 | G158: 02-幼儿园教师 | H158: 100.00 | I158: 66.67 | J158: 74.33 | K158: 71.26 | L158: 8
A159: 157 | B159: 王利 | C159: 5224**********3027 | D159: 91601112022 | E159: 00884 | F159: 202005-观山湖区第六幼儿园 | G159: 02-幼儿园教师 | H159: 90.50 | I159: 60.33 | J159: 76.67 | K159: 70.14 | L159: 9
A160: 158 | B160: 印子瑶 | C160: 5201**********0447 | D160: 91601111210 | E160: 09646 | F160: 202005-观山湖区第六幼儿园 | G160: 02-幼儿园教师 | H160: 90.50 | I160: 60.33 | J160: 74.67 | K160: 68.94 | L160: 10
A161: 159 | B161: 李成云 | C161: 5224**********5967 | D161: 91601020612 | E161: 08044 | F161: 202005-观山湖区第六幼儿园 | G161: 02-幼儿园教师 | H161: 98.00 | I161: 65.33 | J161: 70.00 | K161: 68.13 | L161: 11
A162: 160 | B162: 刘香娇 | C162: 5224**********6623 | D162: 91601012219 | E162: 01445 | F162: 202006-观山湖区第九幼儿园 | G162: 01-幼儿园教师 | H162: 107.00 | I162: 71.33 | J162: 87.10 | K162: 80.79 | L162: 1
A163: 161 | B163: 潘玉英 | C163: 5226**********0541 | D163: 91601042622 | E163: 06035 | F163: 202006-观山湖区第九幼儿园 | G163: 01-幼儿园教师 | H163: 102.50 | I163: 68.33 | J163: 88.60 | K163: 80.49 | L163: 2
A164: 162 | B164: 但宗云 | C164: 5227**********0366 | D164: 91601026806 | E164: 02949 | F164: 202006-观山湖区第九幼儿园 | G164: 01-幼儿园教师 | H164: 99.50 | I164: 66.33 | J164: 86.73 | K164: 78.57 | L164: 3
A165: 163 | B165: 刘晓艺 | C165: 5201**********1246 | D165: 91601015311 | E165: 16573 | F165: 202006-观山湖区第九幼儿园 | G165: 01-幼儿园教师 | H165: 107.00 | I165: 71.33 | J165: 82.30 | K165: 77.91 | L165: 4
A166: 164 | B166: 余兴 | C166: 5224**********2229 | D166: 91601010211 | E166: 01713 | F166: 202006-观山湖区第九幼儿园 | G166: 01-幼儿园教师 | H166: 92.00 | I166: 61.33 | J166: 86.23 | K166: 76.27 | L166: 5
A167: 165 | B167: 丁常琼 | C167: 5221**********2025 | D167: 91601043107 | E167: 03149 | F167: 202006-观山湖区第九幼儿园 | G167: 01-幼儿园教师 | H167: 94.00 | I167: 62.67 | J167: 82.00 | K167: 74.27 | L167: 6
A168: 166 | B168: 陈微 | C168: 5224**********0061 | D168: 91601040101 | E168: 02875 | F168: 202006-观山湖区第九幼儿园 | G168: 01-幼儿园教师 | H168: 86.50 | I168: 57.67 | J168: 84.73 | K168: 73.90 | L168: 7
A169: 167 | B169: 岳芳 | C169: 5224**********3263 | D169: 91601063215 | E169: 00700 | F169: 202006-观山湖区第九幼儿园 | G169: 01-幼儿园教师 | H169: 97.50 | I169: 65.00 | J169: 79.37 | K169: 73.62 | L169: 8
A170: 168 | B170: 饶冉 | C170: 5224**********4024 | D170: 91601052524 | E170: 16298 | F170: 202006-观山湖区第九幼儿园 | G170: 01-幼儿园教师 | H170: 90.00 | I170: 60.00 | J170: 82.46 | K170: 73.48 | L170: 9
A171: 169 | B171: 唐雪梅 | C171: 5110**********6824 | D171: 91601013526 | E171: 00234 | F171: 202006-观山湖区第九幼儿园 | G171: 01-幼儿园教师 | H171: 89.50 | I171: 59.67 | J171: 81.80 | K171: 72.95 | L171: 10
A172: 170 | B172: 敖梅 | C172: 5221**********6523 | D172: 91601110215 | E172: 19107 | F172: 202006-观山湖区第九幼儿园 | G172: 01-幼儿园教师 | H172: 97.50 | I172: 65.00 | J172: 77.43 | K172: 72.46 | L172: 11
A173: 171 | B173: 陈红玉 | C173: 5221**********254X | D173: 91601080823 | E173: 13885 | F173: 202006-观山湖区第九幼儿园 | G173: 01-幼儿园教师 | H173: 91.00 | I173: 60.67 | J173: 80.27 | K173: 72.43 | L173: 12
A174: 172 | B174: 陈玲 | C174: 5224**********2423 | D174: 91601027220 | E174: 00831 | F174: 202006-观山湖区第九幼儿园 | G174: 01-幼儿园教师 | H174: 89.50 | I174: 59.67 | J174: 80.00 | K174: 71.87 | L174: 13
A175: 173 | B175: 汪淑芳 | C175: 5222**********2989 | D175: 91601070829 | E175: 12349 | F175: 202006-观山湖区第九幼儿园 | G175: 01-幼儿园教师 | H175: 87.50 | I175: 58.33 | J175: 75.83 | K175: 68.83 | L175: 14
A176: 174 | B176: 陈智会 | C176: 5224**********9021 | D176: 91601014211 | E176: 01273 | F176: 202006-观山湖区第九幼儿园 | G176: 01-幼儿园教师 | H176: 86.50 | I176: 57.67 | J176: 76.03 | K176: 68.68 | L176: 15
A177: 175 | B177: 付珊 | C177: 5224**********1221 | D177: 91601090521 | E177: 05277 | F177: 202006-观山湖区第九幼儿园 | G177: 01-幼儿园教师 | H177: 86.50 | I177: 57.67 | J177: 70.93 | K177: 65.62 | L177: 16
A178: 176 | B178: 肖婉 | C178: 5204**********0027 | D178: 91601080513 | E178: 03293 | F178: 202006-观山湖区第九幼儿园 | G178: 01-幼儿园教师 | H178: 91.00 | I178: 60.67 | K178: 24.27 | L178: 17 | M178: 缺考
A179: 177 | B179: 熊致华 | C179: 5201**********1529 | D179: 91601062913 | E179: 09232 | F179: 202006-观山湖区第九幼儿园 | G179: 02-幼儿园教师 | H179: 107.50 | I179: 71.67 | J179: 81.33 | K179: 77.46 | L179: 1
A180: 178 | B180: 樊凯豪 | C180: 6104**********1032 | D180: 91601121515 | E180: 13214 | F180: 202006-观山湖区第九幼儿园 | G180: 02-幼儿园教师 | H180: 94.50 | I180: 63.00 | J180: 84.67 | K180: 76.00 | L180: 2
A181: 179 | B181: 赵姗姗 | C181: 5224**********062X | D181: 91601013224 | E181: 04415 | F181: 202006-观山湖区第九幼儿园 | G181: 02-幼儿园教师 | H181: 93.50 | I181: 62.33 | J181: 84.67 | K181: 75.74 | L181: 3
A182: 180 | B182: 刘文静 | C182: 5303**********0362 | D182: 91601083018 | E182: 02130 | F182: 202006-观山湖区第九幼儿园 | G182: 02-幼儿园教师 | H182: 99.50 | I182: 66.33 | J182: 81.67 | K182: 75.54 | L182: 4
A183: 181 | B183: 彭定菊 | C183: 5224**********0845 | D183: 91601017827 | E183: 14308 | F183: 202006-观山湖区第九幼儿园 | G183: 02-幼儿园教师 | H183: 110.50 | I183: 73.67 | J183: 74.33 | K183: 74.06 | L183: 5
A184: 182 | B184: 张仕秀 | C184: 5227**********3647 | D184: 91601016515 | E184: 11281 | F184: 202006-观山湖区第九幼儿园 | G184: 02-幼儿园教师 | H184: 97.50 | I184: 65.00 | J184: 78.67 | K184: 73.20 | L184: 6
A185: 183 | B185: 戴芸 | C185: 5224**********8121 | D185: 91601052703 | E185: 11873 | F185: 202006-观山湖区第九幼儿园 | G185: 02-幼儿园教师 | H185: 99.00 | I185: 66.00 | J185: 76.33 | K185: 72.20 | L185: 7
A186: 184 | B186: 陈康静 | C186: 5201**********122X | D186: 91601040129 | E186: 11371 | F186: 202006-观山湖区第九幼儿园 | G186: 02-幼儿园教师 | H186: 94.50 | I186: 63.00 | J186: 77.67 | K186: 71.80 | L186: 8
A187: 185 | B187: 朱润 | C187: 5223**********0049 | D187: 91601064524 | E187: 12477 | F187: 202006-观山湖区第九幼儿园 | G187: 02-幼儿园教师 | H187: 95.00 | I187: 63.33 | K187: 25.33 | L187: 9 | M187: 缺考
A188: 186 | B188: 陈淑荣 | C188: 5224**********6569 | D188: 91601111727 | E188: 12865 | F188: 202007-观山湖区第十一幼儿园 | G188: 01-幼儿园教师 | H188: 113.50 | I188: 75.67 | J188: 80.67 | K188: 78.67 | L188: 1
A189: 187 | B189: 崔廷维 | C189: 5221**********7647 | D189: 91601031427 | E189: 03660 | F189: 202007-观山湖区第十一幼儿园 | G189: 01-幼儿园教师 | H189: 88.00 | I189: 58.67 | J189: 73.00 | K189: 67.27 | L189: 2
A190: 188 | B190: 谢大琴 | C190: 5201**********2142 | D190: 91601031010 | E190: 11547 | F190: 202007-观山湖区第十一幼儿园 | G190: 01-幼儿园教师 | H190: 93.00 | I190: 62.00 | J190: 65.00 | K190: 63.80 | L190: 3
A191: 189 | B191: 陈利菲 | C191: 5222**********2825 | D191: 91601071118 | E191: 12121 | F191: 202007-观山湖区第十一幼儿园 | G191: 02-幼儿园教师 | H191: 119.00 | I191: 79.33 | J191: 80.67 | K191: 80.14 | L191: 1
A192: 190 | B192: 骆方进 | C192: 5225**********364X | D192: 91601042623 | E192: 04369 | F192: 202007-观山湖区第十一幼儿园 | G192: 02-幼儿园教师 | H192: 101.00 | I192: 67.33 | J192: 77.67 | K192: 73.54 | L192: 2
A193: 191 | B193: 陈华菊 | C193: 5201**********7629 | D193: 91601031904 | E193: 11088 | F193: 202007-观山湖区第十一幼儿园 | G193: 02-幼儿园教师 | H193: 96.50 | I193: 64.33 | J193: 74.33 | K193: 70.33 | L193: 3
A194: 192 | B194: 李捷 | C194: 5224**********4327 | D194: 91601072419 | E194: 05801 | F194: 202007-观山湖区第十一幼儿园 | G194: 02-幼儿园教师 | H194: 98.00 | I194: 65.33 | J194: 72.67 | K194: 69.74 | L194: 4
A195: 193 | B195: 陈娟 | C195: 5202**********0222 | D195: 91601092002 | E195: 01145 | F195: 202007-观山湖区第十一幼儿园 | G195: 02-幼儿园教师 | H195: 97.50 | I195: 65.00 | J195: 67.00 | K195: =ROUND(H195*100/150*0.4+J195*0.6,2) -> 66.20 | L195: 5
A196: 194 | B196: 刘文 | C196: 5201**********4020 | D196: 91601019527 | E196: 06567 | F196: 202008-观山湖区第十二幼儿园 | G196: 01-幼儿园教师 | H196: 102.00 | I196: =H196*100/150 -> 68.00 | J196: 84.17 | K196: 77.70 | L196: 1
A197: 195 | B197: 孙梓搴 | C197: 5201**********0429 | D197: 91601018320 | E197: 13857 | F197: 202008-观山湖区第十二幼儿园 | G197: 01-幼儿园教师 | H197: 96.50 | I197: 64.33 | J197: 84.83 | K197: 76.63 | L197: 2
A198: 196 | B198: 杨慧琳 | C198: 5222**********0045 | D198: 91601019904 | E198: 08887 | F198: 202008-观山湖区第十二幼儿园 | G198: 01-幼儿园教师 | H198: 93.50 | I198: 62.33 | J198: 82.67 | K198: 74.54 | L198: 3
A199: 197 | B199: 罗希佳 | C199: 5201**********4024 | D199: 91601042317 | E199: 02745 | F199: 202008-观山湖区第十二幼儿园 | G199: 01-幼儿园教师 | H199: 91.50 | I199: 61.00 | J199: 83.50 | K199: 74.50 | L199: 4
A200: 198 | B200: 张景 | C200: 5201**********362X | D200: 91601022528 | E200: 08529 | F200: 202008-观山湖区第十二幼儿园 | G200: 01-幼儿园教师 | H200: 97.00 | I200: 64.67 | J200: 80.57 | K200: 74.21 | L200: 5
... 676 more rows
